bitfinex-derivatives/quotes_BTCF0:USTF0_20210111
["timestamp","ask_amount","ask_price","bid_price","bid_amount"]
[1610400586997,4.27181,34440.0,34391.0,0.13632608]
[1610400587197,0.09951,34440.0,34363.0,0.2702]
[1610400587398,0.09951,34440.0,34371.0,4.1197]
[1610400587599,0.4733,34435.0,34371.0,4.1197]
[1610400588501,0.09951,34440.0,34363.0,0.2702]
[1610400588700,0.09951,34440.0,34383.0,4.4355]
[1610400588902,0.09951,34440.0,34383.0,3.56095]
[1610400589301,0.09951,34440.0,34384.0,0.2799]
[1610400589501,0.09951,34440.0,34414.0,0.13632608]
[1610400591603,0.13632608,34415.0,34414.0,0.13632608]
[1610400591803,0.22374608,34415.0,34414.0,0.13632608]
[1610400593005,0.22374608,34415.0,34384.0,0.2799]
[1610400593405,0.08742,34415.0,34384.0,0.2799]
[1610400595006,0.08742,34415.0,34414.0,1.0]
[1610400595407,0.22374608,34415.0,34414.0,1.13632608]
[1610400595608,0.08742,34415.0,34414.0,1.0]
[1610400596913,1.0,34447.0,34414.0,1.0]
[1610400597115,0.08763,34451.0,34386.0,0.08306]
[1610400597319,3.9553,34467.0,34386.0,0.08306]
[1610400597515,3.9553,34467.0,34420.0,0.13632608]
[1610400597715,1.84019515,34504.0,34420.0,0.13632608]
[1610400597919,4.3412,34490.0,34421.0,4.1219]
[1610400598516,4.3412,34490.0,34422.0,0.294]
[1610400598819,4.3412,34490.0,34422.0,0.5904]
[1610400599016,1.0,34477.0,34460.0,1.0]
[1610400599418,0.13632608,34461.0,34460.0,1.0]
[1610400599718,0.23543608,34461.0,34447.0,4.7016]
[1610400599918,0.23543608,34461.0,34446.0,5.0]
[1610400601421,0.13632608,34447.0,34446.0,5.0]
[1610400601620,0.23958608,34447.0,34446.0,5.0]
[1610400601822,0.23958608,34447.0,34440.0,1.0]
[1610400602921,0.10326,34447.0,34440.0,1.0]
[1610400603822,0.10326,34447.0,34423.0,8.9005]
[1610400604027,0.10326,34447.0,34444.0,1.0]
[1610400604725,4.7996,34445.0,34427.0,5.0]
[1610400605023,4.7996,34445.0,34401.0,4.6649]
[1610400605423,0.10326,34447.0,34379.0,0.2855]
[1610400605626,4.0776,34435.0,34379.0,0.2855]
[1610400605824,4.0776,34435.0,34373.0,4.2828]
[1610400606025,0.13632608,34384.0,34373.0,4.2828]
[1610400606225,0.13632608,34384.0,34368.0,0.09]
[1610400606826,0.07368,34391.0,34368.0,0.09]
[1610400607325,0.07368,34391.0,34361.0,0.09873]
[1610400607825,4.8859,34385.0,34361.0,0.09873]
[1610400608027,4.8859,34385.0,34338.0,0.2746]
[1610400608427,4.8859,34385.0,34332.0,4.6839]
[1610400611229,0.2702,34446.0,34326.0,1.0]
[1610400611428,0.2702,34446.0,34347.0,4.6267]
[1610400611730,0.2702,34446.0,34373.0,0.13632608]
[1610400612529,0.2702,34446.0,34354.0,0.07467]
[1610400613030,1.0,34390.0,34373.0,1.0]
[1610400613430,1.11042,34390.0,34373.0,1.0]
[1610400614236,0.13632608,34374.0,34373.0,1.0]
[1610400614431,0.25014608,34374.0,34373.0,1.0]
[1610400615132,0.25014608,34374.0,34372.0,1.0]
[1610400615933,0.11382,34374.0,34372.0,1.0]
[1610400616134,0.06856,34382.0,34372.0,1.0]
[1610400616433,0.20488608,34382.0,34381.0,0.13632608]
[1610400616634,0.06856,34382.0,34381.0,0.13632608]
[1610400617036,0.11042,34390.0,34381.0,0.13632608]
[1610400617037,0.11042,34390.0,34381.0,6.13632608]
[1610400617234,3.6397,34446.0,34381.0,0.13632608]
[1610400618236,3.6397,34446.0,34377.0,4.373]
[1610400618237,0.13632608,34413.0,34406.0,0.13632608]
[1610400618439,0.0759,34413.0,34406.0,0.13632608]
[1610400618938,0.0759,34413.0,34395.0,3.3076]
[1610400619341,0.0759,34413.0,34412.0,1.0]
[1610400619942,0.0759,34413.0,34412.0,0.95]
[1610400620340,0.21222608,34413.0,34412.0,0.95]
[1610400620543,0.0759,34413.0,34380.0,4.5426]
[1610400621643,0.0759,34413.0,34342.0,1.0]
[1610400621644,0.0759,34413.0,34347.0,0.29]
[1610400621845,0.0759,34413.0,34400.0,0.5]
[1610400622345,0.13632608,34401.0,34400.0,0.5]
[1610400622646,0.24611608,34401.0,34400.0,0.5]
[1610400622845,0.10979,34401.0,34400.0,0.5]
[1610400624450,0.10979,34401.0,34400.0,1.63632608]
[1610400625649,0.10979,34401.0,34400.0,1.5]
[1610400626349,0.10979,34401.0,34400.0,0.5]
[1610400626751,0.24611608,34401.0,34400.0,0.5]
[1610400627355,0.10979,34401.0,34400.0,0.5]
[1610400627754,0.09708,34401.0,34400.0,0.5]
[1610400628856,0.23340608,34401.0,34400.0,0.5]
[1610400629957,0.09708,34401.0,34400.0,0.5]
[1610400631059,0.23340608,34401.0,34400.0,0.5]
[1610400631660,0.09708,34401.0,34400.0,0.5]
[1610400632861,0.0759,34413.0,34400.0,0.5]
[1610400633061,0.08624,34401.0,34400.0,0.5]
[1610400633663,0.22256608,34401.0,34400.0,0.5]
[1610400634463,0.22256608,34401.0,34400.0,0.23054]
[1610400635362,0.90224,34412.0,34400.0,0.23054]
[1610400635563,0.09919,34401.0,34400.0,0.23054]
[1610400638268,0.23551608,34401.0,34400.0,0.23054]
[1610400639670,1.23551608,34401.0,34400.0,0.13254]
[1610400639973,1.09919,34401.0,34400.0,0.09554]
[1610400640471,1.23551608,34401.0,34400.0,0.09554]
[1610400641671,0.23551608,34401.0,34400.0,0.09554]
[1610400643774,1.09919,34401.0,34400.0,0.08954]
[1610400644472,1.23551608,34401.0,34400.0,0.08954]
[1610400644673,1.23551608,34401.0,34380.0,0.90554]
[1610400644872,1.23551608,34401.0,34364.0,0.10968]
[1610400644873,0.23551608,34401.0,34364.0,0.10968]
[1610400646378,0.13632608,34365.0,34364.0,0.10968]
[1610400647678,0.1008,34381.0,34364.0,0.10968]
[1610400648379,0.13632608,34365.0,34364.0,0.10968]
[1610400648581,0.13632608,34365.0,34351.0,4.4579]
[1610400648782,0.1008,34381.0,34351.0,4.4579]
[1610400649079,0.1008,34381.0,34364.0,0.03]
[1610400649880,0.09919,34401.0,34364.0,0.03]
[1610400650078,4.0672,34416.0,34364.0,0.03]
[1610400650578,4.0672,34416.0,34367.0,0.13632608]
[1610400652479,4.0672,34416.0,34373.0,0.13632608]
[1610400652880,1.91979399,34430.0,34373.0,0.13632608]
[1610400653080,1.91979399,34430.0,34377.0,4.4276]
[1610400653580,2.09404492,34438.0,34377.0,4.4276]
[1610400653982,2.09368941,34443.0,34377.0,4.4276]
[1610400654383,0.00194,34447.0,34378.0,0.296]
[1610400654582,0.13632608,34399.0,34395.0,0.13632608]
[1610400654783,0.13632608,34399.0,34397.0,0.5562]
[1610400654983,0.23014608,34399.0,34397.0,0.5562]
[1610400656682,0.09382,34399.0,34397.0,0.5562]
[1610400657384,0.13632608,34406.0,34397.0,0.5562]
[1610400659387,0.13632608,34398.0,34397.0,0.5562]
[1610400660689,0.08519,34410.0,34397.0,0.5562]
[1610400660988,0.08519,34410.0,34397.0,1.5562]
[1610400661390,0.13632608,34398.0,34397.0,1.5562]
[1610400661790,0.13632608,34398.0,34397.0,1.5462]
[1610400662890,0.13632608,34398.0,34397.0,0.5462]
[1610400663491,0.13632608,34398.0,34379.0,0.274]
[1610400664992,0.13632608,34398.0,34385.0,1.0]
[1610400665294,0.13632608,34386.0,34385.0,1.0]
[1610400665593,1.07998,34403.0,34385.0,1.0]
[1610400665794,0.10159,34396.0,34385.0,1.0]
[1610400666794,0.10159,34396.0,34385.0,0.9814]
[1610400666995,0.10159,34396.0,34379.0,0.0852]
[1610400667294,0.13632608,34380.0,34379.0,0.0852]
[1610400667801,0.09788,34389.0,34366.0,4.1298]
[1610400668200,0.09788,34389.0,34370.0,0.06944]
[1610400668596,0.0102,34379.0,34370.0,0.06944]
[1610400669309,0.14652608,34379.0,34378.0,1.0]
[1610400669897,0.0102,34379.0,34378.0,1.0]
[1610400671198,0.0102,34379.0,34353.0,3.8605]
[1610400671400,0.13632608,34365.0,34340.0,0.2705]
[1610400671598,0.11083,34365.0,34340.0,0.2705]
[1610400671799,0.11083,34365.0,34364.0,0.02]
[1610400673299,0.24715608,34365.0,34364.0,0.02]
[1610400675200,1.24715608,34365.0,34364.0,0.02]
[1610400676701,1.11083,34365.0,34364.0,0.02]
[1610400677201,0.11083,34365.0,34364.0,0.02]
[1610400677402,0.13632608,34365.0,34364.0,0.02]
[1610400677802,0.24337608,34365.0,34364.0,0.02]
[1610400678302,4.95017608,34365.0,34335.0,0.10317]
[1610400678505,0.24337608,34365.0,34317.0,1.97543275]
[1610400679006,3.3987,34361.0,34307.0,1.98200894]
[1610400679304,0.13632608,34327.0,34309.0,0.13632608]
[1610400681308,0.13632608,34327.0,34317.0,0.13632608]
[1610400682711,0.1035,34357.0,34317.0,0.13632608]
[1610400683010,0.1035,34357.0,34335.0,4.7406]
[1610400683210,0.1035,34357.0,34335.0,6.32668]
[1610400683610,0.1035,34357.0,34336.0,0.2826]
[1610400683811,2.09452772,34428.0,34336.0,1.7826]
[1610400684310,2.09370797,34435.0,34355.0,4.8831]
[1610400684812,2.09366632,34444.0,34355.0,4.8831]
[1610400685112,0.10119,34433.0,34368.0,3.8831]
[1610400685810,0.10119,34433.0,34369.0,0.2932]
[1610400686011,0.10119,34433.0,34389.0,0.13632608]
[1610400687012,0.10119,34433.0,34369.0,0.2932]
[1610400687311,1.11181,34414.0,34397.0,1.0]
[1610400688313,0.13632608,34398.0,34397.0,1.0]
[1610400688512,0.21731608,34398.0,34397.0,1.0]
[1610400689223,0.08099,34398.0,34372.0,4.178]
[1610400689813,0.08099,34398.0,34369.0,0.2932]
[1610400690221,0.13632608,34370.0,34369.0,0.2932]
[1610400690715,0.0936,34370.0,34369.0,0.2932]
[1610400692415,0.22992608,34370.0,34369.0,0.2932]
[1610400693116,0.0936,34370.0,34369.0,0.2932]
[1610400694918,0.22992608,34370.0,34369.0,0.2932]
[1610400695119,0.22992608,34370.0,34369.0,1.2932]
[1610400695718,0.0936,34370.0,34369.0,1.2932]
[1610400695921,1.0,34390.0,34369.0,1.2932]
[1610400697121,0.08099,34398.0,34369.0,0.2932]
[1610400697320,0.11181,34414.0,34369.0,0.2932]
[1610400697521,0.11181,34414.0,34386.0,0.13632608]
[1610400697720,1.74559683,34423.0,34386.0,0.13632608]
[1610400698021,1.74543589,34426.0,34386.0,0.13632608]
[1610400698422,6.4834127,34427.0,34386.0,0.13632608]
[1610400699026,6.4834127,34427.0,34369.0,0.2932]
[1610400699530,6.4834127,34427.0,34378.0,0.13632608]
[1610400699726,4.7381,34427.0,34378.0,0.13632608]
[1610400700325,6.48374903,34427.0,34378.0,0.13632608]
[1610400700825,4.7381,34427.0,34378.0,0.13632608]
[1610400701125,1.0,34416.0,34399.0,1.0]
[1610400701327,1.09633,34416.0,34399.0,1.0]
[1610400701526,0.13632608,34400.0,34399.0,0.998]
[1610400701726,0.24559608,34400.0,34382.0,3.8688]
[1610400702426,0.24559608,34400.0,34382.0,3.8188]
[1610400703628,0.10927,34400.0,34391.0,0.13632608]
[1610400703828,0.10927,34400.0,34382.0,3.8188]
[1610400705533,0.13632608,34383.0,34382.0,3.8188]
[1610400705935,0.23815608,34383.0,34382.0,3.8188]
[1610400707137,0.23815608,34383.0,34369.0,0.2932]
[1610400707535,0.13632608,34370.0,34369.0,0.2932]
[1610400707736,0.22422608,34370.0,34369.0,0.2932]
[1610400709939,0.22422608,34370.0,34369.0,0.3802]
[1610400710139,0.31212608,34370.0,34369.0,0.3802]
[1610400713544,0.31212608,34370.0,34369.0,0.087]
[1610400714146,0.31212608,34370.0,34368.0,0.0872]
[1610400716448,0.13712608,34370.0,34368.0,0.7059]
[1610400716648,0.07703,34370.0,34368.0,0.7059]
[1610400716849,0.07703,34370.0,34369.0,0.0863]
[1610400717849,0.16413,34370.0,34369.0,0.0863]
[1610400718449,0.16413,34370.0,34360.0,0.0883]
[1610400719449,0.16413,34370.0,34348.0,0.0867]
[1610400719650,0.13632608,34345.0,34333.0,0.13632608]
[1610400719850,0.24635608,34345.0,34328.0,0.0872]
[1610400720055,0.11003,34345.0,34328.0,0.0872]
[1610400720551,0.11003,34345.0,34326.0,0.0884]
[1610400720851,0.0882,34344.0,34326.0,0.0884]
[1610400721354,0.0882,34344.0,34324.0,4.2658]
[1610400721553,0.0882,34344.0,34335.0,0.0884]
[1610400721755,0.0882,34344.0,34332.0,1.0]
[1610400722855,0.11003,34345.0,34332.0,1.0]
[1610400723755,0.11003,34345.0,34311.0,3.9204]
[1610400723756,0.13632608,34333.0,34327.0,1.0]
[1610400723958,0.22892608,34333.0,34327.0,1.0]
[1610400724157,0.0926,34333.0,34327.0,1.0]
[1610400725758,0.13632608,34328.0,34321.0,1.0]
[1610400727663,0.13632608,34322.0,34321.0,1.0]
[1610400727860,0.13632608,34322.0,34311.0,0.13632608]
[1610400727861,0.22344608,34322.0,34311.0,0.13632608]
[1610400728462,0.08712,34322.0,34306.0,5.0]
[1610400729662,0.13632608,34308.0,34306.0,5.13632608]
[1610400729863,0.20859608,34308.0,34306.0,5.13632608]
[1610400730964,0.07227,34308.0,34306.0,5.0]
[1610400731764,0.13632608,34307.0,34303.0,5.278]
[1610400733771,0.13632608,34307.0,34292.0,0.291]
[1610400734170,0.07227,34308.0,34292.0,0.291]
[1610400735071,4.728,34314.0,34292.0,0.291]
[1610400735771,4.728,34314.0,34301.0,1.0]
[1610400737673,0.13632608,34302.0,34301.0,1.0]
[1610400737873,0.13632608,34302.0,34292.0,0.291]
[1610400738074,0.08884,34302.0,34292.0,0.291]
[1610400739773,0.13632608,34293.0,34292.0,0.291]
[1610400740277,0.21132608,34293.0,34292.0,0.291]
[1610400741375,0.21132608,34293.0,34278.0,5.0]
[1610400741775,0.13632608,34279.0,34266.0,0.13632608]
[1610400742179,0.21385608,34279.0,34266.0,0.13632608]
[1610400743683,0.21385608,34279.0,34278.0,0.13632608]
[1610400744082,0.21385608,34279.0,34254.0,3.5599]
[1610400745686,0.07753,34279.0,34272.0,0.13632608]
[1610400745886,0.07753,34279.0,34278.0,1.0]
[1610400747185,0.075,34293.0,34278.0,1.0]
[1610400747386,0.08884,34302.0,34278.0,1.0]
[1610400747886,0.08884,34302.0,34273.0,4.3181]
[1610400748187,4.4477,34319.0,34282.0,0.13632608]
[1610400748585,4.4477,34319.0,34273.0,4.3181]
[1610400749786,1.0,34306.0,34289.0,1.0]
[1610400750087,0.13632608,34290.0,34289.0,1.0]
[1610400750387,0.20655608,34290.0,34289.0,1.0]
[1610400751889,0.20655608,34290.0,34288.0,1.0]
[1610400753791,0.20655608,34290.0,34289.0,1.0]
[1610400762301,4.02865608,34290.0,34289.0,0.4732]
[1610400762501,4.02865608,34290.0,34289.0,0.0257]
[1610400762704,0.20655608,34290.0,34233.0,0.11386]
[1610400762902,4.7741,34259.0,34243.0,0.804]
[1610400763402,1.0,34251.0,34233.0,0.11386]
[1610400763606,3.4922,34240.0,34218.0,0.2816]
[1610400764108,3.4722,34240.0,34218.0,0.2816]
[1610400764303,0.13632608,34223.0,34218.0,0.2816]
[1610400765002,0.13632608,34223.0,34194.0,4.6628]
[1610400765203,0.13632608,34223.0,34195.0,0.2895]
[1610400765604,4.7673,34217.0,34195.0,0.2895]
[1610400766005,4.8359,34217.0,34195.0,0.2895]
[1610400766407,4.8359,34217.0,34177.0,4.6446]
[1610400766607,4.8359,34217.0,34178.0,0.2779]
[1610400767009,4.8359,34217.0,34179.0,0.13632608]
[1610400767010,0.13632608,34186.0,34179.0,0.13632608]
[1610400767407,0.08322,34187.0,34179.0,0.13632608]
[1610400768108,0.08322,34187.0,34178.0,0.2779]
[1610400769011,0.13632608,34184.0,34178.0,0.2779]
[1610400769411,1.0,34204.0,34178.0,0.2779]
[1610400769610,0.804,34204.0,34195.0,3.9032]
[1610400769913,0.0686,34217.0,34195.0,3.99775]
[1610400769914,0.0236,34217.0,34195.0,3.99775]
[1610400770111,0.026052,34255.0,34195.0,3.99775]
[1610400770612,1.5785,37322.0,34195.0,3.99775]
[1610400770613,0.00873466,34264.0,34195.0,0.09455]
[1610400770814,3.3797,34271.0,34207.0,4.1873]
[1610400771113,0.02603059,34272.0,34210.0,3.2915]
[1610400771313,0.13632608,34224.0,34223.0,0.6562]
[1610400771713,0.13632608,34224.0,34207.0,0.10749]
[1610400771913,0.13632608,34224.0,34207.0,3.45199]
[1610400773413,0.13632608,34220.0,34207.0,3.45199]
[1610400773615,0.23186608,34220.0,34207.0,3.45199]
[1610400773817,0.09554,34220.0,34219.0,6.0]
[1610400775419,0.09554,34220.0,34219.0,6.13632608]
[1610400775619,0.09554,34220.0,34219.0,6.0]
[1610400775820,0.09554,34220.0,34212.0,4.7677]
[1610400777522,0.13632608,34216.0,34212.0,4.7677]
[1610400779924,0.09554,34220.0,34212.0,4.7677]
[1610400780126,0.09554,34220.0,34198.0,0.13632608]
[1610400780327,0.09542,34229.0,34217.0,3.6082]
[1610400780525,0.00875849,34263.0,34217.0,3.6082]
[1610400780726,0.00875724,34271.0,34217.0,3.6082]
[1610400781127,0.00360651,34271.0,34200.0,0.10163]
[1610400781326,0.00360651,34271.0,34224.0,4.8113]
[1610400781629,0.75569802,34277.0,34241.0,0.13632608]
[1610400781630,0.08096,34242.0,34241.0,0.13632608]
[1610400781828,0.08096,34242.0,34241.0,3.69632608]
[1610400782729,0.00360675,34286.0,34241.0,3.69632608]
[1610400782730,0.01237044,34286.0,34241.0,3.69632608]
[1610400783028,0.01237044,34286.0,34241.0,0.13632608]
[1610400783227,0.51542126,34288.0,34252.0,3.5335]
[1610400783228,0.00360847,34288.0,34252.0,3.5335]
[1610400783730,0.00361,34289.0,34276.0,0.13632608]
[1610400783929,0.00360985,34293.0,34276.0,0.13632608]
[1610400784729,0.00361144,34294.0,34276.0,0.13632608]
[1610400784929,0.00361144,34294.0,34273.0,4.4658]
[1610400785129,0.01238193,34295.0,34273.0,4.4658]
[1610400785430,0.01238877,34288.0,34273.0,4.4658]
[1610400785630,0.11528877,34288.0,34273.0,4.4658]
[1610400785831,0.00361355,34287.0,34273.0,4.4658]
[1610400786331,0.13632608,34274.0,34273.0,4.46402564]
[1610400786733,0.22856608,34274.0,34273.0,4.46402564]
[1610400787030,0.05356608,34274.0,34273.0,4.46402564]
[1610400788030,0.05356608,34274.0,34273.0,5.46402564]
[1610400788431,0.05356608,34274.0,34273.0,5.60035172]
[1610400788632,0.05356608,34274.0,34273.0,5.46402564]
[1610400791839,0.05356608,34274.0,34273.0,4.46402564]
[1610400792037,0.00362567,34284.0,34273.0,4.46402564]
[1610400792038,0.01243119,34284.0,34273.0,4.46402564]
[1610400792540,0.00362802,34283.0,34273.0,4.46402564]
[1610400792938,0.13632608,34274.0,34273.0,4.46402564]
[1610400793239,0.21525608,34274.0,34273.0,4.46402564]
[1610400793839,0.21525608,34274.0,34273.0,5.46402564]
[1610400794840,0.21525608,34274.0,34273.0,1.0]
[1610400795941,0.21525608,34274.0,34253.0,4.2574]
[1610400796943,0.13632608,34254.0,34253.0,4.2574]
[1610400797141,0.23005608,34254.0,34251.0,0.13632608]
[1610400797541,0.09373,34254.0,34251.0,0.13632608]
[1610400797941,0.09373,34254.0,34253.0,6.0]
[1610400798741,0.06373,34254.0,34253.0,6.0]
[1610400801844,0.06373,34254.0,34251.0,0.13632608]
[1610400802245,0.13632608,34265.0,34251.0,0.13632608]
[1610400803046,0.13632608,34265.0,34264.0,0.13632608]
[1610400803847,0.13632608,34265.0,34264.0,1.0]
[1610400806451,0.13632608,34265.0,34264.0,0.70625]
[1610400806652,3.52162608,34265.0,34230.0,3.3865]
[1610400806852,5.86442824,34265.0,34230.0,3.3865]
[1610400807065,5.97240824,34265.0,34230.0,3.2105]
[1610400807267,0.0125436,34255.0,34230.0,3.2105]
[1610400807663,0.13632608,34231.0,34230.0,3.2105]
[1610400808054,0.21692608,34231.0,34230.0,3.2105]
[1610400808454,0.21692608,34231.0,34218.0,0.13632608]
[1610400809656,0.21692608,34231.0,34207.0,4.2694]
[1610400809657,0.21692608,34231.0,34224.0,0.13632608]
[1610400809855,0.0806,34231.0,34224.0,0.13632608]
[1610400811657,0.0806,34231.0,34230.0,0.13632608]
[1610400813159,0.13632608,34245.0,34230.0,0.13632608]
[1610400813359,0.0036637,34248.0,34230.0,0.13632608]
[1610400813659,0.13998978,34248.0,34247.0,0.13632608]
[1610400813860,0.13632608,34248.0,34247.0,0.13632608]
[1610400816262,0.13632608,34248.0,34235.0,3.9825]
[1610400816663,0.24524608,34248.0,34235.0,3.9825]
[1610400817865,0.10892,34248.0,34243.0,0.13632608]
[1610400818564,0.00891867,34254.0,34243.0,0.13632608]
[1610400818966,0.46045957,34261.0,34243.0,0.4961]
[1610400819266,1.1957047,34264.0,34243.0,0.4961]
[1610400819267,0.42611123,34264.0,34243.0,0.4961]
[1610400820170,0.76989901,34268.0,34243.0,0.4961]
[1610400820369,0.13632608,34261.0,34259.0,0.13632608]
[1610400820569,0.23744608,34261.0,34259.0,0.13632608]
[1610400820769,0.23744608,34261.0,34243.0,0.4961]
[1610400822272,0.10112,34261.0,34254.0,0.13632608]
[1610400824076,0.10112,34261.0,34243.0,0.4961]
[1610400824275,0.10112,34261.0,34252.0,0.13632608]
[1610400825875,0.77158294,34265.0,34252.0,0.13632608]
[1610400826276,0.13632608,34253.0,34248.0,0.13632608]
[1610400826775,0.24403608,34253.0,34248.0,0.13632608]
[1610400828277,0.24403608,34253.0,34252.0,0.13632608]
[1610400828478,0.10771,34253.0,34252.0,0.13632608]
[1610400828877,0.10771,34253.0,34252.0,4.04102608]
[1610400829277,0.10771,34253.0,34252.0,0.13632608]
[1610400830280,0.10771,34253.0,34242.0,4.4267]
[1610400830479,0.10771,34253.0,34222.0,0.5824]
[1610400830678,0.10771,34253.0,34248.0,0.13632608]
[1610400831179,0.10771,34253.0,34222.0,0.5824]
[1610400831680,0.77346308,34259.0,34222.0,0.5824]
[1610400831881,0.07515,34253.0,34222.0,0.5824]
[1610400832282,0.4927,34252.0,34222.0,0.5824]
[1610400832583,0.77369005,34250.0,34222.0,0.5824]
[1610400832885,0.77372346,34249.0,34222.0,0.5824]
[1610400833283,0.4261937,34251.0,34222.0,0.5824]
[1610400833284,0.77376592,34248.0,34222.0,0.5824]
[1610400833484,0.13632608,34228.0,34224.0,0.13632608]
[1610400833784,0.24846608,34228.0,34224.0,0.13632608]
[1610400834185,0.24846608,34228.0,34222.0,0.5824]
[1610400835489,0.11214,34228.0,34222.0,0.5824]
[1610400836091,0.11214,34228.0,34227.0,0.13632608]
[1610400836791,0.77390072,34244.0,34227.0,0.13632608]
[1610400837189,0.7738584,34245.0,34227.0,0.13632608]
[1610400837492,0.7738584,34245.0,34224.0,3.4498]
[1610400837690,0.8735884,34245.0,34222.0,0.5824]
[1610400837889,0.77400641,34243.0,34222.0,0.5824]
[1610400838388,0.13632608,34232.0,34227.0,0.13632608]
[1610400838689,0.20876608,34232.0,34227.0,0.13632608]
[1610400840392,0.20876608,34232.0,34222.0,0.5824]
[1610400842093,0.20876608,34232.0,34205.0,3.63809]
[1610400842293,0.20876608,34232.0,34207.0,0.13632608]
[1610400842294,0.13632608,34223.0,34207.0,0.13632608]
[1610400842491,0.13632608,34223.0,34180.0,0.2743]
[1610400842492,4.0324,34218.0,34188.0,0.2855]
[1610400842791,0.21241608,34223.0,34188.0,0.2855]
[1610400842992,1.0,34212.0,34188.0,0.2855]
[1610400843193,1.08739,34212.0,34188.0,0.2855]
[1610400843992,1.08739,34212.0,34180.0,0.2743]
[1610400844193,1.08739,34212.0,34188.0,0.13632608]
[1610400844194,4.2806,34207.0,34188.0,0.13632608]
[1610400844895,4.2806,34207.0,34172.0,4.4401]
[1610400846198,0.52667754,34209.0,34164.0,0.2844]
[1610400846400,0.13632608,34174.0,34164.0,0.2844]
[1610400846600,0.13632608,34174.0,34147.0,2.04210302]
[1610400846801,0.24629608,34174.0,34142.0,2.04200944]
[1610400847001,3.4078,34152.0,34142.0,2.04200944]
[1610400847202,0.24629608,34174.0,34139.0,2.32607112]
[1610400847503,3.5225,34143.0,34139.0,2.32607112]
[1610400847803,3.5225,34143.0,34131.0,2.04593485]
[1610400847804,0.06997,34143.0,34131.0,2.04593485]
[1610400848003,3.4386,34132.0,34123.0,2.05111695]
[1610400848204,0.06997,34143.0,34123.0,2.05111695]
[1610400848205,0.09658,34136.0,34123.0,2.05111695]
[1610400848404,0.09658,34136.0,34110.0,2.68222986]
[1610400848405,4.65412608,34124.0,34112.0,2.05374588]
[1610400848806,4.65412608,34124.0,34099.0,2.68566769]
[1610400848807,4.73232608,34124.0,34103.0,2.06135128]
[1610400849205,4.73232608,34124.0,34100.0,2.21991677]
[1610400849206,4.73232608,34124.0,34099.0,2.06617731]
[1610400849409,4.596,34124.0,34099.0,2.06617731]
[1610400849607,4.596,34124.0,34086.0,3.9847]
[1610400850006,4.8687,34107.0,34077.0,2.07725665]
[1610400850305,0.10312,34107.0,34077.0,2.07725665]
[1610400850507,0.10312,34107.0,34071.0,0.2929]
[1610400850708,3.4018,34089.0,34086.0,0.13632608]
[1610400850906,3.4018,34089.0,34071.0,0.2929]
[1610400850907,3.4987,34089.0,34071.0,0.2929]
[1610400851107,3.4987,34089.0,34066.0,2.07898968]
[1610400851307,0.0969,34089.0,34066.0,2.07898968]
[1610400851507,0.0969,34089.0,34058.0,2.07730942]
[1610400851508,3.8275,34072.0,34058.0,2.07730942]
[1610400851707,3.91168,34072.0,34058.0,2.07730942]
[1610400852009,3.55541606,34072.0,34049.0,2.08488904]
[1610400852308,0.08418,34072.0,34049.0,2.08488904]
[1610400852507,0.08418,34072.0,34046.0,0.2965]
[1610400852708,0.64698,34072.0,34044.0,4.3441]
[1610400853008,0.13632608,34045.0,34034.0,2.08430711]
[1610400853209,0.20972608,34045.0,34034.0,2.08430711]
[1610400853407,0.20972608,34045.0,34030.0,2.24463842]
[1610400853408,4.9278,34040.0,34018.0,2.09576637]
[1610400853909,4.9278,34040.0,34007.0,5.90370476]
[1610400853910,4.9278,34040.0,34007.0,3.3243]
[1610400854109,0.0734,34045.0,34002.0,2.10050151]
[1610400854310,0.0734,34045.0,34002.0,0.10245]
[1610400854509,4.4928,34033.0,34002.0,0.10245]
[1610400854711,4.59546,34033.0,34002.0,0.10245]
[1610400855009,0.10266,34033.0,34002.0,0.10245]
[1610400855211,4.9337,34011.0,34002.0,0.10245]
[1610400855511,4.9337,34011.0,33975.0,2.58702093]
[1610400855512,0.10266,34033.0,33969.0,2.10103473]
[1610400855713,4.6904,34008.0,33969.0,2.10103473]
[1610400855910,0.11115,34014.0,33969.0,2.10103473]
[1610400856217,0.11115,34014.0,31029.0,0.07303613]
[1610400856218,0.11115,34014.0,33987.0,0.41202]
[1610400856423,0.11115,34014.0,33987.0,0.11282]
[1610400856617,0.11115,34014.0,34004.0,4.93686]
[1610400856817,0.10266,34033.0,34004.0,4.93686]
[1610400857212,4.0027,34067.0,34004.0,4.93686]
[1610400858014,3.9373,34086.0,34015.0,4.7514]
[1610400858215,1.0,34087.0,34004.0,0.10986]
[1610400858614,4.4731,34085.0,34012.0,3.6356]
[1610400858814,4.55583,34085.0,34012.0,3.6356]
[1610400859122,0.08273,34085.0,34014.0,4.2308]
[1610400859318,0.08273,34085.0,34004.0,0.10986]
[1610400859516,0.13632608,34061.0,34059.0,0.13632608]
[1610400859718,0.22896608,34061.0,34043.0,3.4969]
[1610400860018,0.09264,34061.0,34043.0,3.4969]
[1610400860217,0.07264,34061.0,34043.0,3.4969]
[1610400860720,0.07264,34061.0,33995.0,3.7542]
[1610400861017,0.07264,34061.0,33995.0,3.82791]
[1610400861418,0.07264,34061.0,34014.0,0.13632608]
[1610400862118,0.07264,34061.0,34023.0,3.591]
[1610400862320,0.08273,34085.0,34023.0,3.591]
[1610400863420,0.13632608,34059.0,34052.0,0.13632608]
[1610400863621,0.13632608,34059.0,34023.0,3.591]
[1610400863821,0.24964608,34059.0,34023.0,3.591]
[1610400864221,0.11332,34059.0,34023.0,3.591]
[1610400864721,0.08596,34077.0,34021.0,0.11071]
[1610400864922,0.09034,34070.0,34041.0,4.6507]
[1610400865222,0.08273,34085.0,34041.0,4.7237]
[1610400865423,0.50066619,34128.0,34041.0,0.073]
[1610400865624,0.13632608,34096.0,34095.0,0.13632608]